Workbook

Sheet Barranquilla
A1: CIUDAD | B1: PRODUCTOS | C1: AÑO 2017 | D1: AÑO 2018 | E1: AÑO 2019 | F1: AÑO 2020 | G1: TOTAL INGRESO
A2: Barranquilla | B2: PIZZA | C2: 8500 | D2: =C2*12%+C2 -> 9520 | E2: =D2*13%+D2 -> 10757.6 | F2: =E2*13%+E2 -> 12156.088
A3: Barranquilla | B3: ENTRADAS | C3: 20569 | D3: =C3*12%+C3 -> 23037.28 | E3: =D3*13%+D3 -> 26032.1264 | F3: 29416.30283
A4: Barranquilla | B4: HAMBURGUESAS | C4: 9630 | D4: 10785.6 | E4: 12187.728 | F4: 13772.13264
A5: Barranquilla | B5: MULTIPASES | C5: 5263 | D5: 5894.56 | E5: 6660.8528 | F5: 7526.763664
A6: Barranquilla | B6: TIQUETERAS | C6: 63215 | D6: 70800.8 | E6: 80004.904 | F6: 90405.54152
A7: Barranquilla | B7: CRISPETAS | C7: 12326 | D7: 13805.12 | E7: 15599.7856 | F7: 17627.75773
A8: Barranquilla | B8: EVENTOS | C8: 32698 | D8: 36621.76 | E8: 41382.5888 | F8: 46762.32534
A9: Barranquilla | B9: COLEGIOS | C9: 25963 | D9: 29078.56 | E9: 32858.7728 | F9: 37130.41326
A10: Barranquilla | B10: FIESTAS | C10: 45693 | D10: 51176.16 | E10: 57829.0608 | F10: 65346.8387
A11: Barranquilla | B11: EXCLUSIVIDADES | C11: 56985 | D11: 63823.2 | E11: 72120.216 | F11: 81495.84408
A12: Barranquilla | B12: FUNDACIONES | C12: 12632 | D12: 14147.84 | E12: 15987.0592 | F12: 18065.3769
A13: Barranquilla | B13: VACACIONES | C13: 42152 | D13: 47210.24 | E13: 53347.5712 | F13: 60282.75546
A14: Barranquilla | B14: PLAN DIVERSIÓN | C14: 55963 | D14: 62678.56 | E14: 70826.7728 | F14: 80034.25326
A15: Barranquilla | B15: PASAPORTE ILIMITADO | C15: 45632 | D15: 51107.84 | E15: 57751.8592 | F15: 65259.6009
A16: Barranquilla | B16: PLA CUMPLEAÑERO | C16: 12325 | D16: 13804 | E16: 15598.52 | F16: 17626.3276

Sheet Bogotá
A1: CIUDAD | B1: PRODUCTOS | C1: AÑO 2017 | D1: AÑO 2018 | E1: AÑO 2019 | F1: AÑO 2020 | G1: TOTAL INGRESO
A2: Bogotá | B2: PIZZA | C2: 10500 | D2: =C2*12%+C2 -> 11760 | E2: =D2*13%+D2 -> 13288.8 | F2: =E2*13%+E2 -> 15016.344
A3: Bogotá | B3: ENTRADAS | C3: 22563 | D3: =C3*12%+C3 -> 25270.56 | E3: =D3*13%+D3 -> 28555.7328 | F3: 32267.97806
A4: Bogotá | B4: HAMBURGUESAS | C4: 10562 | D4: 11829.44 | E4: 13367.2672 | F4: 15105.01194
A5: Bogotá | B5: MULTIPASES | C5: 7526 | D5: 8429.12 | E5: 9524.9056 | F5: 10763.14333
A6: Bogotá | B6: TIQUETERAS | C6: 66222 | D6: 74168.64 | E6: 83810.5632 | F6: 94705.93642
A7: Bogotá | B7: CRISPETAS | C7: 14223 | D7: 15929.76 | E7: 18000.6288 | F7: 20340.71054
A8: Bogotá | B8: EVENTOS | C8: 35695 | D8: 39978.4 | E8: 45175.592 | F8: 51048.41896
A9: Bogotá | B9: COLEGIOS | C9: 27963 | D9: 31318.56 | E9: 35389.9728 | F9: 39990.66926
A10: Bogotá | B10: FIESTAS | C10: 47859 | D10: 53602.08 | E10: 60570.3504 | F10: 68444.49595
A11: Bogotá | B11: EXCLUSIVIDADES | C11: 58632 | D11: 65667.84 | E11: 74204.6592 | F11: 83851.2649
A12: Bogotá | B12: FUNDACIONES | C12: 14526 | D12: 16269.12 | E12: 18384.1056 | F12: 20774.03933
A13: Bogotá | B13: VACACIONES | C13: 44656 | D13: 50014.72 | E13: 56516.6336 | F13: 63863.79597

Sheet Medellín
A1: CIUDAD | B1: PRODUCTOS | C1: AÑO 2017 | D1: AÑO 2018 | E1: AÑO 2019 | F1: AÑO 2020 | G1: TOTAL INGRESO
A2: Medellín | B2: PIZZA | C2: 8323 | D2: =C2*12%+C2 -> 9321.76 | E2: =D2*13%+D2 -> 10533.5888 | F2: =E2*13%+E2 -> 11902.95534
A3: Medellín | B3: ENTRADAS | C3: 20363 | D3: =C3*12%+C3 -> 22806.56 | E3: =D3*13%+D3 -> 25771.4128 | F3: 29121.69646
A4: Medellín | B4: HAMBURGUESAS | C4: 96323 | D4: 107881.76 | E4: 121906.3888 | F4: 137754.2193
A5: Medellín | B5: MULTIPASES | C5: 5963 | D5: 6678.56 | E5: 7546.7728 | F5: 8527.853264
A6: Medellín | B6: TIQUETERAS | C6: 59632 | D6: 66787.84 | E6: 75470.2592 | F6: 85281.3929
A7: Medellín | B7: CRISPETAS | C7: 9856 | D7: 11038.72 | E7: 12473.7536 | F7: 14095.34157
A8: Medellín | B8: EVENTOS | C8: 32659 | D8: 36578.08 | E8: 41333.2304 | F8: 46706.55035
A9: Medellín | B9: COLEGIOS | C9: 25896 | D9: 29003.52 | E9: 32773.9776 | F9: 37034.59469
A10: Medellín | B10: FIESTAS | C10: 45852 | D10: 51354.24 | E10: 58030.2912 | F10: 65574.22906
A11: Medellín | B11: EXCLUSIVIDADES | C11: 55632 | D11: 62307.84 | E11: 70407.8592 | F11: 79560.8809
A12: Medellín | B12: FUNDACIONES | C12: 13252 | D12: 14842.24 | E12: 16771.7312 | F12: 18952.05626
A13: Medellín | B13: VACACIONES | C13: 43526 | D13: 48749.12 | E13: 55086.5056 | F13: 62247.75133
A14: Medellín | B14: PLAN DIVERSIÓN | C14: 57632 | D14: 64547.84 | E14: 72939.0592 | F14: 82421.1369
A15: Medellín | B15: PASAPORTE ILIMITADO | C15: 47851 | D15: 53593.12 | E15: 60560.2256 | F15: 68433.05493

Sheet Brasilia
A1: CIUDAD | B1: PRODUCTOS | C1: AÑO 2017 | D1: AÑO 2018 | E1: AÑO 2019 | F1: AÑO 2020 | G1: TOTAL INGRESO
A2: Brasilia | B2: PIZZA | C2: 7956 | D2: =C2*12%+C2 -> 8910.72 | E2: =D2*13%+D2 -> 10069.1136 | F2: =E2*13%+E2 -> 11378.09837
A3: Brasilia | B3: ENTRADAS | C3: 16523 | D3: =C3*12%+C3 -> 18505.76 | E3: =D3*13%+D3 -> 20911.5088 | F3: 23630.00494
A4: Brasilia | B4: HAMBURGUESAS | C4: 89632 | D4: 100387.84 | E4: 113438.2592 | F4: 128185.2329
A5: Brasilia | B5: MULTIPASES | C5: 5000 | D5: 5600 | E5: 6328 | F5: 7150.64
A6: Brasilia | B6: TIQUETERAS | C6: 50632 | D6: 56707.84 | E6: 64079.8592 | F6: 72410.2409
A7: Brasilia | B7: CRISPETAS | C7: 4596 | D7: 5147.52 | E7: 5816.6976 | F7: 6572.868288
A8: Brasilia | B8: EVENTOS | C8: 24569 | D8: 27517.28 | E8: 31094.5264 | F8: 35136.81483
A9: Brasilia | B9: COLEGIOS | C9: 20256 | D9: 22686.72 | E9: 25635.9936 | F9: 28968.67277
A10: Brasilia | B10: FIESTAS | C10: 41632 | D10: 46627.84 | E10: 52689.4592 | F10: 59539.0889
A11: Brasilia | B11: EXCLUSIVIDADES | C11: 49874 | D11: 55858.88 | E11: 63120.5344 | F11: 71326.20387
A12: Brasilia | B12: VACACIONES | C12: 39635 | D12: 44391.2 | E12: 50162.056 | F12: 56683.12328
A13: Brasilia | B13: PASAPORTE ILIMITADO | C13: 41896 | D13: 46923.52 | E13: 53023.5776 | F13: 59916.64269
A14: Brasilia | B14: PLA CUMPLEAÑERO | C14: 10479 | D14: 11736.48 | E14: 13262.2224 | F14: 14986.31131
